bitfinex/quotes_ETHUSD_20260209
["timestamp","ask_amount","ask_price","bid_price","bid_amount"]
[1770599700738,0.35154433,2084.0,2083.3,12.79506941]
[1770599700928,0.24354433,2084.0,2083.4,0.2335703]
[1770599701097,0.002,2084.1,2083.4,0.2335703]
[1770599701098,1.19931157,2084.6,2083.5,1.199904]
[1770599701298,0.94145761,2084.5,2083.5,1.199904]
[1770599701533,0.94145761,2084.5,2083.4,1.19992225]
[1770599703023,1.19938591,2084.4,2083.4,1.19992225]
[1770599703207,0.94145761,2084.3,2083.4,1.19992225]
[1770599703849,0.05519294,2083.8,2082.5,2.113014]
[1770599704059,0.94145761,2083.7,2082.6,1.20038629]
[1770599704342,0.94145761,2083.4,2082.6,1.2004078]
[1770599704522,0.94145761,2083.4,2082.5,1.20043591]
[1770599704720,0.94145761,2083.4,2082.5,4.80191644]
[1770599705061,0.94145761,2083.4,2082.4,1.20052841]
[1770599705209,0.99665055,2083.2,2082.1,4.55568562]
[1770599705407,0.99665055,2083.2,2082.0,4.80384328]
[1770599705408,0.99665055,2083.2,2082.4,0.7]
[1770599705715,0.94145761,2082.8,2082.0,0.001]
[1770599706231,0.05519294,2082.6,2082.0,0.001]
[1770599706638,0.94145761,2082.8,2082.0,0.001]
[1770599707219,1.20036491,2082.7,2082.0,0.001]
[1770599707760,1.20036491,2082.7,2081.4,1.20106649]
[1770599707761,0.99665055,2082.6,2081.4,1.20106649]
[1770599707913,1.04385761,2082.5,2081.4,1.20106649]
[1770599708437,0.94145761,2082.5,2081.6,1.20099871]
[1770599709615,0.1024,2083.2,2081.7,0.9296774]
[1770599709846,0.99665055,2082.8,2081.4,2.13079203]
[1770599710221,0.99665055,2082.8,2081.4,1.20111463]
[1770599710423,0.99665055,2082.5,2081.4,1.20111463]
[1770599710724,0.99665055,2082.5,2081.3,9.85863731]
[1770599710918,0.99665055,2082.2,2081.3,8.6574781]
[1770599711125,0.99665055,2082.2,2081.3,5.3024781]
[1770599711365,0.99665055,2081.9,2081.2,0.001]
[1770599711518,0.99665055,2081.9,2080.9,0.001]
[1770599711519,0.94145761,2081.2,2080.9,0.001]
[1770599711725,0.94145761,2081.1,2080.6,0.001]
[1770599712449,0.99665055,2081.0,2080.4,0.001]
[1770599712945,0.99665055,2081.0,2080.1,0.001]
[1770599712946,0.99665055,2080.7,2080.1,0.001]
[1770599713150,0.05519294,2081.0,2080.1,0.001]
[1770599713151,0.1024,2081.1,2080.1,0.001]
[1770599713358,0.15759294,2081.1,2080.1,0.001]
[1770599713525,1.09905055,2081.1,2080.1,0.001]
[1770599713727,1.2013455,2081.0,2080.1,0.001]
[1770599713933,2.14278676,2081.1,2080.1,0.001]
[1770599714738,2.1979797,2081.1,2080.1,0.001]
[1770599716759,2.14278676,2081.1,2080.1,0.001]
[1770599717254,1.20132915,2081.1,2080.1,0.001]
[1770599717554,4.55726698,2081.2,2080.1,0.90230791]
[1770599717758,3.356,2081.2,2080.1,0.90230791]
[1770599718058,3.356,2081.2,2080.3,0.001]
[1770599719338,1.20082616,2081.9,2080.5,0.90130791]
[1770599719550,1.2560191,2081.9,2080.5,0.90130791]
[1770599719748,0.05519294,2081.6,2080.5,0.90130791]
[1770599720062,1.25629291,2081.5,2080.6,1.20157646]
[1770599720260,2.20436262,2081.5,2080.3,0.001]
[1770599720563,0.05519294,2081.2,2080.4,1.20169001]
[1770599720932,0.05519294,2081.2,2080.4,1.20167146]
[1770599721259,1.00326265,2081.2,2080.3,1.20273198]
[1770599721461,1.00326265,2081.2,2080.4,1.20168643]
[1770599721642,1.00326265,2081.2,2080.3,1.20270534]
[1770599721840,1.00326265,2081.2,2080.3,1.20271268]
[1770599722237,1.20128778,2081.1,2080.3,0.001]
[1770599722438,2.14933182,2081.2,2080.3,0.001]
[1770599722640,2.20452476,2081.2,2080.3,0.001]
[1770599723266,3.357,2081.3,2080.3,0.90230791]
[1770599723566,3.357,2081.3,2080.4,0.0097929]
[1770599723937,4.5581733,2081.3,2080.4,0.0097929]
[1770599724255,3.357,2081.3,2080.4,0.91110081]
[1770599724444,3.357,2081.3,2080.5,1.20163422]
[1770599727250,1.20100225,2081.6,2080.6,0.00979195]
[1770599727563,1.25619519,2081.6,2080.5,2.11273408]
[1770599728312,1.00326265,2081.3,2080.5,0.00979195]
[1770599728472,1.00326265,2081.3,2080.3,0.001]
[1770599728473,0.94806971,2081.1,2080.3,0.001]
[1770599729142,0.05519294,2081.0,2080.3,0.001]
[1770599729474,0.94806971,2081.1,2080.3,0.001]
[1770599729971,4.55823005,2081.2,2080.3,0.001]
[1770599731270,3.357,2081.2,2080.3,0.90230791]
[1770599731439,4.55823289,2081.2,2080.5,0.001]
[1770599731635,0.002,2081.1,2080.5,0.001]
[1770599732110,0.95006971,2081.1,2080.5,0.001]
[1770599732270,0.05519294,2081.0,2080.5,0.001]
[1770599733093,2.15141503,2081.1,2080.5,0.001]
[1770599733266,0.002,2081.1,2080.5,0.001]
[1770599733787,0.002,2081.1,2080.5,0.90230791]
[1770599733987,0.002,2081.3,2080.5,0.90230791]
[1770599735065,0.002,2081.3,2080.7,1.20151871]
[1770599735487,0.002,2081.3,2080.7,2.80282662]
[1770599737776,3.358,2082.1,2081.1,0.90130791]
[1770599738571,0.002,2082.2,2081.2,0.90130791]
[1770599739671,0.002,2082.2,2081.3,1.20117234]
[1770599740101,0.002,2082.2,2081.3,2.10248025]
[1770599740672,0.002,2082.2,2081.4,0.90130791]
[1770599742201,0.002,2082.2,2081.5,1.20105693]
[1770599743499,0.95006971,2082.2,2081.5,1.20105693]
[1770599744304,2.15074405,2082.2,2081.2,4.80487286]
[1770599745372,1.02508033,2082.1,2081.0,1.2013213]
[1770599745597,0.05519294,2081.8,2081.1,1.20128241]
[1770599746096,1.02508033,2081.8,2081.0,1.20133434]
[1770599746893,1.20094153,2081.7,2080.9,0.001]
[1770599747508,2.17081384,2081.8,2080.9,0.001]
[1770599747803,0.96988739,2081.7,2080.9,0.001]
[1770599748598,1.20087077,2081.9,2080.9,0.99406568]
[1770599748984,1.20087077,2081.9,2081.0,1.2013455]
[1770599749303,1.02508033,2081.8,2080.9,1.20236093]
[1770599750012,0.05519294,2081.5,2080.9,0.001]
[1770599750177,1.02508033,2081.5,2080.9,0.001]
[1770599751086,2.17100202,2081.4,2080.9,0.001]
[1770599751286,0.96988739,2081.3,2080.9,0.001]
[1770599752000,0.05519294,2081.2,2080.9,0.001]
[1770599752799,0.96988739,2081.3,2080.9,0.001]
[1770599753221,1.20123005,2081.2,2080.9,0.001]
[1770599753592,2.22631038,2081.2,2080.9,0.001]
[1770599753921,0.96988739,2081.1,2080.6,0.001]
[1770599755111,1.2013455,2081.0,2080.6,0.001]
[1770599758712,1.2013455,2081.0,2080.8,0.001]
[1770599759520,4.8052707,2081.1,2080.8,0.001]
[1770599760089,0.002,2081.3,2080.8,0.99406568]
[1770599760521,1.20317405,2081.3,2080.8,0.001]
[1770599761026,0.96988739,2081.2,2080.6,0.001]
[1770599761317,1.02508033,2081.2,2080.6,0.001]
[1770599761693,1.02508033,2080.9,2080.3,0.001]
[1770599761893,0.05519294,2080.6,2080.3,0.001]
[1770599762219,0.05519294,2079.9,2079.5,1e-08]
[1770599762401,0.13179999,2079.4,2079.1,1.20243492]
[1770599762585,0.13179999,2079.4,2079.0,1.2024728]
[1770599763212,0.13179999,2079.4,2079.2,1.20338279]
[1770599763386,3.358,2079.9,2079.2,1.20338279]
[1770599763588,1.20203865,2079.8,2079.2,0.001]
[1770599764083,0.13179999,2079.7,2079.2,0.001]
[1770599764288,0.13179999,2079.7,2078.2,4.81166132]
[1770599764289,0.05519294,2079.5,2078.6,1.20270291]
[1770599764599,0.35098077,2079.4,2078.6,1.20270291]
[1770599764800,0.35098077,2079.4,2078.7,1.20266812]
[1770599765113,0.48278076,2079.4,2078.7,1.20266812]
[1770599765822,1.68509151,2079.4,2078.5,1.20279047]
[1770599766013,0.34353683,2079.3,2078.5,2.19585615]
[1770599766189,0.34353683,2079.3,2078.6,0.99306568]
[1770599766388,0.33453684,2079.3,2078.8,0.99306568]
[1770599766593,1.20192307,2080.0,2078.8,0.99306568]
[1770599766793,0.29249998,2079.9,2078.8,0.99306568]
[1770599767009,0.34769292,2079.9,2078.8,0.99306568]
[1770599767191,0.34217557,2079.8,2078.8,0.99306568]
[1770599767392,4.32788739,2079.7,2078.5,2.19585615]
[1770599767717,0.34237826,2079.6,2078.5,2.19585615]
[1770599767916,0.13179999,2079.5,2078.8,0.99306568]
[1770599768216,0.34237826,2079.6,2078.8,0.99306568]
[1770599768632,1.54454374,2079.6,2078.8,0.99306568]
[1770599768827,0.34237826,2079.6,2078.8,0.99306568]
[1770599769746,0.34237826,2079.6,2078.9,1.20255904]
[1770599769894,0.33938522,2080.0,2079.2,0.99306568]
[1770599771205,0.33938522,2080.0,2079.4,0.99306568]
[1770599771528,0.33938522,2080.0,2079.0,0.99306568]
[1770599771711,0.002,2079.6,2079.0,0.99306568]
[1770599771907,0.002,2079.6,2079.1,1.20244336]
[1770599772814,0.33829656,2079.9,2079.2,0.99306568]
[1770599773729,0.33829656,2079.9,2079.1,1.20244336]
[1770599774706,0.33829656,2079.9,2079.2,0.99306568]
[1770599774908,0.05719294,2080.5,2079.4,0.99306568]
[1770599774909,0.002,2080.5,2079.4,0.99306568]
[1770599775110,0.3374487,2080.4,2079.6,0.94219204]
[1770599775621,0.2874487,2080.4,2079.6,0.94219204]
[1770599775830,0.2874487,2080.4,2079.7,0.94219204]
[1770599776005,0.2874487,2080.4,2080.0,1.20192307]
[1770599777627,0.2874487,2080.4,2079.6,1.20215203]
[1770599777628,2.42690606,2080.4,2079.6,1.20215203]
[1770599777808,2.42690606,2080.4,2079.5,1.20217713]
[1770599777809,0.99295165,2080.3,2079.5,1.20217713]
[1770599778011,1.53814113,2080.2,2079.2,4.8095382]
[1770599778346,0.33630102,2080.2,2079.3,1.22519141]
[1770599780628,0.33630102,2080.2,2079.4,1.20226988]
[1770599780845,1.5381099,2080.2,2079.4,1.20226988]
[1770599781532,0.93775871,2080.1,2079.0,3.359]
[1770599781734,0.05519294,2079.9,2079.2,1.20238329]
[1770599781934,1.5381099,2080.2,2079.3,1.2023175]
[1770599782107,1.59330284,2080.2,2079.3,1.2023175]
[1770599782308,0.33630102,2080.2,2079.3,1.2023175]
[1770599782528,1.53811388,2080.2,2079.2,5.8009727]
[1770599783136,2.47587259,2080.2,2079.2,4.80935159]
[1770599783315,0.05519294,2080.0,2079.2,4.80935159]
[1770599783633,0.93775871,2080.1,2079.2,4.80935159]
[1770599783826,0.33630102,2080.2,2079.3,0.99162111]
[1770599784031,0.002,2080.0,2079.5,0.99162111]
[1770599784538,0.002,2080.0,2079.2,9.1599727]
[1770599784742,0.002,2080.0,2079.2,8.16835159]
[1770599785318,0.002,2080.0,2079.3,1.22519141]
[1770599786841,0.002,2080.0,2079.4,1.20226988]
[1770599787944,0.33830102,2080.2,2079.5,0.99162111]
[1770599788618,0.33830102,2080.2,2079.4,1.20226988]
[1770599789518,1.54012663,2080.2,2079.4,1.20226988]
[1770599790548,0.33830102,2080.2,2079.4,1.20226988]
[1770599790929,1.5401127,2080.2,2079.3,4.80907954]
[1770599791330,0.33830102,2080.2,2079.3,4.80907954]
[1770599791533,0.33830102,2080.2,2079.4,0.99162111]
[1770599792826,0.33830102,2080.2,2079.3,4.80907954]
[1770599793154,0.33830102,2080.2,2079.3,5.80070065]
[1770599793453,0.33830102,2080.2,2079.3,4.80907954]
[1770599793749,0.33830102,2080.2,2079.4,0.99162111]
[1770599794934,0.33830102,2080.2,2079.6,0.99162111]
[1770599795136,0.002,2080.5,2079.7,0.2335703]
[1770599795342,0.002,2080.5,2079.7,1.22519141]
[1770599796136,0.002,2080.2,2079.7,1.22519141]
[1770599796851,0.33558026,2080.7,2080.0,7.9831483]
[1770599797054,0.93775871,2081.4,2080.0,7.9831483]
[1770599797055,6.94254484,2082.0,2080.7,3.62745]
[1770599797230,6.94254484,2082.0,2080.6,0.99162111]
[1770599797231,0.33613892,2081.6,2080.8,0.2335703]
[1770599797629,0.33613892,2081.6,2080.9,0.2335703]
[1770599798357,0.33613892,2081.6,2080.7,0.99162111]
[1770599799551,0.002,2082.2,2081.3,0.99162111]
[1770599801328,0.33789883,2082.4,2081.9,1.20082616]
[1770599803558,0.33789883,2082.4,2081.7,0.2335703]
[1770599804075,0.002,2083.1,2082.1,1.22519141]
[1770599804353,0.002,2083.1,2082.3,2.061]
[1770599804559,0.002,2083.1,2082.4,3.358]
[1770599804859,0.002,2083.5,2082.7,0.99162111]
[1770599805041,0.002,2083.5,2082.8,0.2335703]
[1770599805352,0.002,2083.5,2082.7,0.99162111]
[1770599805559,0.002,2083.5,2082.8,1.20030727]
[1770599806636,0.002,2083.5,2082.9,0.2335703]
[1770599807030,1e-08,2083.7,2083.1,0.2335703]
[1770599807784,1e-08,2083.7,2083.2,1.2000768]
[1770599808454,0.002,2084.3,2083.3,0.2335703]
[1770599808660,1.20144835,2084.3,2083.3,0.2335703]
[1770599808859,1.20144835,2084.3,2083.0,3.357]
[1770599808860,0.002,2083.7,2083.0,3.357]
[1770599809077,0.002,2083.7,2083.1,1.20012718]
[1770599809279,0.002,2083.7,2082.9,1.20021077]
[1770599809455,0.002,2083.7,2083.1,1.20012815]
[1770599810158,0.002,2083.7,2082.7,4.80144056]
[1770599811170,1.20147241,2084.3,2083.1,0.92789089]
[1770599811374,1.20147241,2084.3,2083.1,4.28389089]
[1770599812451,0.98335791,2084.3,2083.2,1.2000768]
[1770599812863,0.98335791,2084.3,2083.1,1.20010155]
[1770599812864,0.98135791,2084.0,2083.1,1.20010155]
[1770599813071,0.98135791,2084.0,2083.0,4.80075552]
[1770599813250,0.98135791,2084.0,2083.1,1.20012524]
[1770599814884,1.19967368,2083.9,2082.7,3.96775721]
[1770599815054,0.002,2084.3,2083.2,21.67315865]
[1770599815259,1.20144873,2084.3,2083.2,14.47949565]
[1770599815795,0.002,2084.5,2083.7,0.92789089]
[1770599816012,0.002,2084.5,2083.8,3.5885703]
[1770599816288,0.002,2084.5,2083.8,3.355]
[1770599817258,0.002,2084.5,2083.9,1.19967368]
[1770599817980,0.002,2084.5,2083.8,1.19971867]
[1770599818287,0.002,2084.5,2083.7,1.19974959]
[1770599818463,0.002,2084.5,2083.8,1.19972412]
[1770599818978,0.002,2084.5,2083.8,1.19972019]
[1770599819176,0.002,2084.5,2083.9,0.2335703]
[1770599819491,0.002,2084.5,2084.0,1.19961612]
[1770599820194,0.002,2084.5,2083.7,1.19975753]
[1770599820364,0.002,2084.5,2083.8,1.19972861]
[1770599820691,0.002,2084.5,2083.7,1.19974993]
[1770599821072,0.002,2084.3,2083.9,1.19967335]
[1770599821390,0.002,2084.3,2083.7,4.79869475]
[1770599822009,0.002,2084.3,2083.7,1.19978883]
[1770599823392,0.002,2084.3,2083.6,1.16146119]
[1770599823599,0.33184043,2084.8,2084.0,13.31856289]
[1770599823780,0.33184043,2084.8,2084.1,3.847408]
[1770599825304,0.33184043,2084.8,2084.0,4.28089089]
[1770599825305,1.53100925,2084.8,2084.0,3.353]
[1770599825606,1.53100056,2084.8,2084.1,1.19955856]
[1770599826120,0.33184043,2084.8,2084.1,1.19955856]
[1770599826610,1.20085417,2085.4,2084.2,1.16146119]
[1770599827491,1.20085417,2085.4,2084.3,8.22886489]
[1770599827697,0.002,2085.4,2084.5,1.19932837]
[1770599828092,0.002,2085.4,2084.6,1.16146119]
[1770599828804,0.002,2085.4,2084.6,4.51446119]
[1770599828990,0.002,2085.4,2084.6,14.47749565]
[1770599829584,0.002,2085.4,2084.8,0.2335703]
[1770599830681,0.98135791,2085.3,2083.8,14.76128973]
[1770599830916,0.92616497,2085.3,2084.3,1.19940149]
[1770599831118,0.92616497,2085.3,2084.1,4.79815409]
[1770599831320,0.002,2085.4,2084.2,1.19949796]
[1770599831321,0.98135791,2085.2,2084.2,1.19949796]
[1770599831690,1.19898326,2085.1,2084.1,1.19952164]
[1770599832106,2.12514823,2085.1,2084.0,1.19957898]
[1770599832306,0.92616497,2084.7,2083.6,4.79932552]
[1770599832514,0.92616497,2084.7,2083.9,1.19963157]
[1770599832922,3.352,2085.0,2084.0,1.19961197]
[1770599833218,0.05519294,2084.9,2083.9,1.19963815]
[1770599833420,0.05519294,2084.9,2084.3,0.001]
[1770599833787,1.19915579,2084.8,2084.3,0.001]
[1770599835391,0.94317542,2084.7,2084.3,0.001]
[1770599835698,0.94317542,2084.7,2084.0,0.001]
[1770599835893,1.19927084,2084.6,2084.0,0.001]
[1770599838211,5.75236837,2084.8,2084.0,0.001]
[1770599838920,0.95571946,2084.7,2084.0,0.001]
[1770599839924,1.0109124,2084.6,2084.0,0.001]
[1770599840437,1.19932837,2084.5,2084.0,0.001]
[1770599840751,0.95571946,2084.4,2084.0,0.001]
[1770599841234,0.95571946,2084.4,2083.4,1.1999616]
[1770599841235,4.30771946,2084.4,2083.4,1.1999616]
[1770599841804,4.30771946,2084.4,2083.3,8.15202532]
[1770599841805,4.30771946,2084.4,2083.3,4.55197633]
[1770599842011,0.95571946,2084.3,2083.3,4.55197633]
[1770599842509,2.15522046,2084.2,2083.3,1.19997633]
[1770599842721,4.7973135,2084.6,2083.3,1.19997633]
[1770599842722,0.95771946,2085.2,2083.6,14.087185]
[1770599842921,1.19898326,2085.1,2084.0,2.853695]
[1770599843331,1.20096188,2085.2,2084.0,6.69671291]
[1770599843535,1.20096188,2085.2,2084.0,0.90975891]
[1770599843933,1.20096188,2085.2,2084.3,0.90975891]
[1770599843934,0.002,2085.2,2084.3,0.90975891]
[1770599844534,0.002,2085.2,2084.5,1.19932837]
[1770599844766,0.002,2085.2,2084.6,1.14332921]
[1770599844915,0.002,2085.4,2084.8,11.35872691]
[1770599845115,0.002,2085.4,2084.9,6.314206]
[1770599845327,0.002,2085.4,2084.9,4.306005]
[1770599845638,0.002,2085.4,2084.8,0.90975891]
[1770599846043,0.002,2085.4,2084.6,0.2335703]
[1770599846250,0.002,2085.4,2084.7,3.050232]
[1770599846841,0.002,2085.0,2084.8,1.19915579]
[1770599848947,0.002,2085.0,2084.7,4.79662317]
[1770599849563,0.002,2085.4,2084.9,0.2335703]
[1770599849934,0.002,2085.4,2084.7,1.19921331]
[1770599851332,0.002,2085.4,2084.5,4.79731342]
[1770599851530,0.002,2085.4,2084.6,3.542627]
[1770599851731,0.002,2085.4,2084.6,3.025622]
[1770599851946,0.95771946,2085.4,2084.5,1.19932837]
[1770599852962,0.002,2085.4,2084.5,1.19932837]
[1770599853176,0.002,2085.4,2084.5,2.10908728]
[1770599853335,0.002,2085.4,2084.6,0.90975891]
[1770599853532,0.002,2085.4,2084.7,1.19921331]
[1770599853738,1.0109124,2085.3,2084.3,1.19939378]
[1770599854648,1.0109124,2085.3,2084.2,1.20046215]
[1770599854831,1.0109124,2085.3,2084.3,1.19943838]
[1770599855034,1.0109124,2085.3,2084.2,0.001]
[1770599855663,0.95571946,2085.1,2084.2,0.001]
[1770599857666,1.19892576,2085.2,2084.2,0.001]
[1770599858348,1.0109124,2085.0,2084.2,0.001]
[1770599858550,0.95571946,2085.0,2084.2,0.001]
[1770599859176,0.002,2084.9,2084.2,0.001]
[1770599860973,0.002,2084.9,2084.2,0.91075891]
[1770599861766,0.002,2084.9,2084.5,4.047232]
[1770599862146,0.002,2085.4,2084.5,4.95699091]
[1770599862350,0.002,2086.0,2085.0,1.14332921]
[1770599862670,0.002,2086.0,2085.1,0.90975891]
[1770599862852,0.002,2086.0,2085.2,2.72]
[1770599863051,0.002,2086.0,2085.4,2.032]
[1770599863476,0.002,2086.0,2085.3,1.19886826]
[1770599863666,0.002,2086.3,2085.6,0.90975891]
[1770599864950,0.002,2086.3,2085.7,0.91778408]
[1770599865175,0.32441433,2086.4,2085.7,0.91778408]
[1770599865380,0.32441433,2086.4,2085.5,1.19875329]
[1770599865381,0.32441433,2086.4,2085.8,1.15135438]
[1770599865550,1.19797646,2086.9,2085.8,1.15135438]
[1770599865750,1.30017692,2087.2,2085.8,1.15135438]
[1770599866051,0.05519294,2087.1,2085.8,1.15135438]
[1770599866569,2.21224564,2087.2,2085.8,1.15135438]
[1770599867083,0.96726166,2087.0,2085.9,1.19848091]
[1770599867308,0.96726166,2086.9,2085.9,1.19851531]
[1770599867947,0.91206872,2086.9,2085.9,1.19851531]
[1770599868260,1.30017692,2087.2,2085.9,2.11629939]
[1770599868456,0.05519294,2087.1,2085.9,2.11629939]
[1770599868674,0.96726166,2086.8,2085.2,0.91778408]
[1770599868874,0.91206872,2086.4,2085.4,1.19878263]
[1770599869076,1.19812134,2086.6,2085.3,5.947084]
[1770599869390,1.19812134,2086.6,2085.3,2.176]
[1770599869704,0.91206872,2086.3,2085.1,4.79589963]
[1770599870067,4.54812134,2086.6,2085.2,1.15135438]
[1770599870267,4.54812134,2086.6,2085.3,0.91778408]
[1770599870684,4.54812134,2086.6,2085.4,7.4202473]
[1770599870992,4.89409883,2087.0,2085.8,1.19858088]
[1770599871577,0.002,2086.7,2085.9,4.646403]
[1770599871888,0.002,2086.7,2085.8,2.11636496]
[1770599872605,0.002,2086.7,2085.9,0.2335703]
[1770599872907,0.002,2086.7,2085.8,2.11636496]
[1770599873263,0.002,2086.7,2085.9,1.15135438]
[1770599873566,0.91406872,2086.7,2085.9,0.2335703]
[1770599873772,0.91406872,2086.7,2085.8,1.19857378]
[1770599873999,0.002,2086.7,2085.8,1.19857378]
[1770599874368,0.002,2086.9,2086.0,0.91778408]
[1770599874587,0.002,2086.9,2086.2,1.15135438]
[1770599874993,1.19765468,2087.5,2086.4,10.45110119]
[1770599875298,1.19765468,2087.5,2086.5,5.707989]
[1770599875499,0.002,2087.8,2086.5,5.707989]
[1770599875793,1.19947034,2087.8,2086.6,7.647319]
[1770599876002,1.19947034,2087.8,2086.6,3.35]
[1770599876216,2.11153906,2087.8,2086.6,3.35]
[1770599877181,2.11153906,2087.8,2086.7,1.19806392]
[1770599878491,1.19947034,2087.8,2086.7,1.19806392]
[1770599878878,2.11153906,2087.8,2086.7,1.19806392]
[1770599879679,0.05519294,2087.7,2086.7,1.19806392]
[1770599879876,0.91206872,2087.7,2086.6,4.54807873]
[1770599880092,0.96726166,2087.7,2086.6,4.54807873]
[1770599880305,0.91206872,2087.7,2086.6,4.54807873]
[1770599881691,0.002,2087.8,2086.6,4.54807873]
[1770599881898,0.002,2087.8,2086.8,0.91778408]
[1770599882109,0.32435344,2088.2,2087.2,0.91778408]
[1770599882284,4.78807947,2088.6,2087.3,4.50035438]
[1770599882484,2.10895979,2088.8,2087.5,1.15135438]
[1770599882706,1.19689107,2088.8,2087.6,0.91778408]
[1770599883425,0.91206872,2088.7,2087.5,3.349]
[1770599883724,1.19697404,2088.6,2087.6,1.19754742]
[1770599884085,0.91206872,2088.5,2087.4,0.2335703]
[1770599884389,3.35,2088.4,2087.5,1.19759113]
[1770599884580,3.35,2088.4,2087.4,1.1976253]
[1770599884785,0.002,2088.4,2087.5,1.19757681]
[1770599885183,0.031068,2088.4,2087.5,1.19757681]
[1770599885512,0.031068,2088.4,2087.6,0.2335703]
[1770599885692,0.031068,2088.4,2087.7,0.91778408]
[1770599885900,0.031068,2088.4,2087.8,1.1974327]
[1770599886409,0.031068,2088.4,2087.9,0.91778408]
[1770599886614,0.002,2088.6,2087.9,0.91778408]
[1770599888207,0.002,2088.6,2088.0,1.197318]
[1770599890208,0.002,2088.6,2087.9,4.78933458]
[1770599890404,0.002,2088.6,2088.0,0.91778408]
[1770599890588,0.002,2089.5,2088.6,0.91778408]
[1770599890785,0.002,2089.5,2088.5,10.76225437]
[1770599890786,0.002,2089.5,2088.8,0.91778408]
[1770599891704,0.002,2089.5,2088.7,3.847]
[1770599891903,1.19848657,2089.5,2088.7,3.347]
[1770599892105,0.32355709,2089.9,2088.9,0.91778408]
[1770599892313,0.1395276,2090.0,2089.1,1.19668756]
[1770599892818,1.33570437,2090.0,2089.1,1.19668756]
[1770599893323,1.33570437,2090.0,2089.0,1.19673667]
[1770599893521,0.1395276,2090.0,2089.0,1.19673667]
[1770599893722,1.33570112,2090.0,2089.0,1.19673667]
[1770599894308,1.33570112,2090.0,2089.0,1.25192961]
[1770599894722,0.91206872,2089.9,2089.0,1.19674415]
[1770599895022,0.91206872,2089.9,2088.5,4.26378408]
[1770599895221,0.91206872,2089.9,2088.6,1.19693077]
[1770599895421,0.91206872,2089.9,2088.6,1.19696875]
[1770599895624,0.91206872,2089.9,2088.8,1.19685069]
[1770599895922,0.91206872,2089.9,2088.7,1.19687979]
[1770599896123,0.95264241,2089.7,2088.4,1.19705089]
[1770599896327,0.92549764,2089.4,2088.0,4.78926298]
[1770599897029,0.92549764,2089.4,2088.2,0.5]
[1770599897402,0.92549764,2089.2,2088.0,0.001]
[1770599897611,1.19645848,2089.5,2088.1,1.04955974]
[1770599898000,1.19645848,2089.5,2088.3,0.9943668]
[1770599898196,2.12195612,2089.5,2088.0,0.9953668]
[1770599898401,2.12195612,2089.5,2088.1,2.19162746]
[1770599899017,0.92549764,2089.4,2088.1,1.19726066]
[1770599899223,0.92549764,2089.4,2088.0,1.19827458]
[1770599899421,0.92549764,2089.4,2088.0,0.001]
[1770599899737,0.92549764,2089.1,2088.0,0.001]
[1770599900648,0.98069058,2088.9,2088.0,0.001]
[1770599900846,0.92549764,2088.8,2087.8,0.001]
[1770599901531,0.92549764,2088.5,2087.8,0.001]
[1770599902036,0.98069058,2088.3,2087.8,0.001]
[1770599902349,0.98069058,2088.0,2086.9,0.001]
[1770599902649,0.92549764,2087.7,2086.9,0.001]
[1770599902824,1.1974327,2087.8,2086.9,0.001]
[1770599902825,0.98069058,2087.6,2086.9,0.001]
[1770599904149,1.1974327,2087.8,2086.9,0.001]
[1770599904656,1.19726066,2088.1,2086.9,1.19894911]
[1770599904823,1.19718146,2088.3,2087.0,0.9943668]
[1770599905028,1.19718146,2088.3,2087.1,0.9943668]
[1770599905225,1.19668756,2089.1,2087.4,13.4925278]
[1770599905549,0.92549764,2089.0,2087.5,0.9943668]
[1770599905757,0.92549764,2088.8,2087.2,3.346]
[1770599906133,1.19668756,2089.1,2087.5,8.323906]
[1770599906334,0.1024,2089.0,2087.4,0.9943668]
[1770599906553,0.1024,2089.0,2087.6,8.507639]
[1770599906731,1.19680214,2088.9,2087.7,1.19749006]
[1770599907456,1.19680214,2088.9,2087.8,5.496889]
[1770599907756,1.19680214,2088.9,2087.7,1.19749006]
[1770599907966,1.19680214,2088.9,2087.8,2.2226]
[1770599908268,1.19680214,2088.9,2087.7,1.19749006]
[1770599908576,1.19680214,2088.9,2087.8,2.2226]
[1770599909665,1.19668756,2089.1,2087.7,1.19749006]
[1770599909843,0.92549764,2089.0,2087.6,1.19751564]
[1770599910250,0.98069058,2088.7,2087.4,1.19761256]
[1770599910453,0.98069058,2088.7,2088.0,0.001]
[1770599910763,0.98269058,2088.7,2088.0,0.001]
[1770599911389,0.98069058,2088.4,2086.9,4.79279596]
[1770599911541,1.02789764,2088.5,2087.3,1.19769028]
[1770599911861,1.19708868,2088.4,2087.0,0.9943668]
[1770599912171,2.12258632,2088.4,2086.9,4.79279596]
[1770599912392,0.92549764,2088.3,2086.9,4.79279596]
[1770599912580,0.92549764,2088.3,2086.9,1.19894911]
[1770599912761,0.98069058,2088.3,2086.9,1.19894911]
[1770599913269,0.98069058,2088.3,2086.9,0.001]
[1770599913483,0.1024,2088.0,2086.9,0.001]
[1770599913717,0.92549764,2087.8,2086.9,0.001]
[1770599914980,4.27149764,2087.8,2086.9,0.001]
[1770599915776,1.19749006,2087.7,2086.9,0.001]
[1770599915981,9.06145788,2087.8,2086.9,0.001]
[1770599915982,1.19744474,2087.8,2086.9,0.001]
[1770599916176,1.19726066,2088.2,2086.9,0.001]
[1770599917601,1.19726066,2088.2,2086.9,0.9953668]
[1770599917908,1.19726066,2088.2,2087.1,1.19783431]
[1770599918116,4.54311836,2088.4,2087.2,0.9943668]
[1770599919816,4.54311836,2088.4,2086.9,4.79233726]
[1770599919817,5.468616,2088.4,2086.9,4.79233726]
[1770599920033,4.54311836,2088.4,2087.2,0.9943668]
[1770599921820,4.54311836,2088.4,2087.3,1.19771954]
[1770599923242,0.002,2088.2,2087.3,1.19771954]
[1770599925714,0.002,2088.2,2087.2,1.19776781]
[1770599926742,0.92247934,2088.2,2087.1,0.001]
[1770599927233,0.97567228,2087.8,2087.1,0.001]
[1770599927431,3.346,2087.7,2087.1,0.001]
[1770599928620,1.19754742,2087.6,2087.1,0.001]
[1770599928936,0.002,2088.2,2087.1,0.001]
[1770599929122,1.19726066,2088.1,2087.1,0.001]
[1770599930722,4.790994,2088.2,2087.1,0.001]
[1770599930723,4.790994,2088.2,2087.1,0.97019441]